[Event "Titled Tuesday Blitz January 03 Late 2023"]
[White "Pichot, Alan"]
[Black "Gascon Del Nogal, Jose Rafael"]
[WhiteFideId "110973"]
[BlackFideId "3902463"]
[WhiteElo "2638"]
[BlackElo "2459"]
[Result "1-0"]
[Round "05"]
[TimeControl "180+2"]
[Date "2023.01.03"]
[WhiteClock "0:00:45"]
[BlackClock "0:00:02"]

1. c4 {[%clk 0:02:47]}  e5 {[%clk 0:02:59]} 2. g3 {[%clk 0:02:46]}  Nc6 {[%clk 0:02:59]} 3. Bg2 {[%clk 0:02:46]}  Bc5 {[%clk 0:02:59]} 4. e3 {[%clk 0:02:45]}  a6 {[%clk 0:02:59]} 5. Ne2 {[%clk 0:02:44]}  Ba7 {[%clk 0:02:59]} 6. d4 {[%clk 0:02:34]}  exd4 {[%clk 0:02:50]} 7. exd4 {[%clk 0:02:32]}  d5 {[%clk 0:02:45]} 8. cxd5 {[%clk 0:02:27]}  Nce7 {[%clk 0:02:42]} 9. Nbc3 {[%clk 0:02:27]}  Nf6 {[%clk 0:02:42]} 10. Bg5 {[%clk 0:02:20]}  Bg4 {[%clk 0:01:51]} 11. Bxf6 {[%clk 0:02:14]}  gxf6 {[%clk 0:01:48]} 12. Qb3 {[%clk 0:02:12]}  O-O {[%clk 0:01:32]} 13. O-O {[%clk 0:02:10]}  Nf5 {[%clk 0:01:16]} 14. Qc2 {[%clk 0:01:59]}  Bxe2 {[%clk 0:01:01]} 15. Qxf5 {[%clk 0:01:54]}  Bxf1 {[%clk 0:00:38]} 16. Rxf1 {[%clk 0:01:55]}  Qc8 {[%clk 0:00:17]} 17. Qxf6 {[%clk 0:01:53]}  Qd8 {[%clk 0:00:17]} 18. Qf5 {[%clk 0:01:52]}  Qd6 {[%clk 0:00:17]} 19. Ne4 {[%clk 0:01:48]}  Qg6 {[%clk 0:00:18]} 20. Qe5 {[%clk 0:01:48]}  f5 {[%clk 0:00:15]} 21. Nc5 {[%clk 0:01:46]}  Bxc5 {[%clk 0:00:15]} 22. dxc5 {[%clk 0:01:46]}  Rae8 {[%clk 0:00:16]} 23. Qxc7 {[%clk 0:01:46]}  f4 {[%clk 0:00:16]} 24. d6 {[%clk 0:00:51]}  f3 {[%clk 0:00:16]} 25. Bh3 {[%clk 0:00:52]}  Re2 {[%clk 0:00:13]} 26. d7 {[%clk 0:00:47]}  Rd2 {[%clk 0:00:02]} 27. Qe5 {[%clk 0:00:47]}  Qh6 {[%clk 0:00:01]} 28. Be6+ {[%clk 0:00:46]}  Rf7 {[%clk 0:00:01]} 29. Bxf7+ {[%clk 0:00:45]}  Kxf7 {[%clk 0:00:02]} 30. Qe8+ {[%clk 0:00:45]} 1-0


[Site "https://www.chess.com"]

[Event "Titled Tuesday Blitz January 03 Late 2023"]
[White "Vasquez Schroeder, Rodrigo"]
[Black "Atanasov, Anthony"]
[WhiteFideId "3400042"]
[BlackFideId "2623897"]
[WhiteElo "2524"]
[BlackElo "2368"]
[Result "0-1"]
[Round "05"]
[TimeControl "180+2"]
[Date "2023.01.03"]
[WhiteClock "0:00:49"]
[BlackClock "0:00:16"]

1. e4 {[%clk 0:03:00]}  e5 {[%clk 0:02:59]} 2. Nf3 {[%clk 0:03:00]}  Nf6 {[%clk 0:03:00]} 3. d3 {[%clk 0:03:00]}  Nc6 {[%clk 0:03:00]} 4. c3 {[%clk 0:03:00]}  Bc5 {[%clk 0:02:59]} 5. Be2 {[%clk 0:03:00]}  d6 {[%clk 0:03:00]} 6. O-O {[%clk 0:02:59]}  h6 {[%clk 0:02:59]} 7. b4 {[%clk 0:02:59]}  Bb6 {[%clk 0:02:59]} 8. a4 {[%clk 0:02:59]}  a5 {[%clk 0:02:59]} 9. b5 {[%clk 0:02:59]}  Ne7 {[%clk 0:02:59]} 10. Nbd2 {[%clk 0:03:00]}  O-O {[%clk 0:02:58]} 11. Nc4 {[%clk 0:02:59]}  Be6 {[%clk 0:02:47]} 12. Nxb6 {[%clk 0:02:59]}  cxb6 {[%clk 0:02:48]} 13. Ba3 {[%clk 0:02:50]}  Rc8 {[%clk 0:02:44]} 14. c4 {[%clk 0:02:47]}  Ng6 {[%clk 0:02:37]} 15. g3 {[%clk 0:02:46]}  Re8 {[%clk 0:02:28]} 16. Kg2 {[%clk 0:02:45]}  Qd7 {[%clk 0:02:26]} 17. Ng1 {[%clk 0:02:45]}  Nh7 {[%clk 0:02:10]} 18. f4 {[%clk 0:02:41]}  exf4 {[%clk 0:02:09]} 19. gxf4 {[%clk 0:02:41]}  Nh4+ {[%clk 0:02:09]} 20. Kg3 {[%clk 0:02:37]}  g5 {[%clk 0:02:00]} 21. Bb2 {[%clk 0:02:07]}  Qe7 {[%clk 0:01:35]} 22. f5 {[%clk 0:01:56]}  Bxc4 {[%clk 0:01:27]} 23. dxc4 {[%clk 0:01:46]}  Qxe4 {[%clk 0:01:27]} 24. Qd5 {[%clk 0:01:17]}  Qxd5 {[%clk 0:00:36]} 25. cxd5 {[%clk 0:01:16]}  Rc2 {[%clk 0:00:37]} 26. Bd4 {[%clk 0:01:02]}  Rexe2 {[%clk 0:00:37]} 27. Nxe2 {[%clk 0:01:02]}  Rxe2 {[%clk 0:00:38]} 28. Rae1 {[%clk 0:00:54]}  Rxe1 {[%clk 0:00:31]} 29. Rxe1 {[%clk 0:00:52]}  Nxf5+ {[%clk 0:00:31]} 30. Kg4 {[%clk 0:00:52]}  Nxd4 {[%clk 0:00:30]} 31. Re7 {[%clk 0:00:49]}  Nf6+ {[%clk 0:00:27]} 32. Kh3 {[%clk 0:00:50]}  Nxd5 {[%clk 0:00:26]} 33. Rxb7 {[%clk 0:00:50]}  Kg7 {[%clk 0:00:16]} 34. Rd7 {[%clk 0:00:49]}  Nf5 {[%clk 0:00:16]} 35. Kg4 {[%clk 0:00:49]}  Nf6+ {[%clk 0:00:16]} 0-1


[Site "https://www.chess.com"]

[Event "Titled Tuesday Blitz January 03 Late 2023"]
[White "Zeynalli, Rashad"]
[Black "Kravtsiv, Martyn"]
[WhiteFideId "13403320"]
[BlackFideId "14113147"]
[WhiteElo "2200"]
[BlackElo "2598"]
[Result "0-1"]
[Round "05"]
[TimeControl "180+2"]
[Date "2023.01.03"]
[WhiteClock "0:00:10"]
[BlackClock "0:00:29"]

1. d4 {[%clk 0:03:00]}  d5 {[%clk 0:02:57]} 2. Bf4 {[%clk 0:03:01]}  Nf6 {[%clk 0:02:56]} 3. e3 {[%clk 0:03:01]}  c5 {[%clk 0:02:55]} 4. Nf3 {[%clk 0:03:01]}  Nc6 {[%clk 0:02:55]} 5. Nbd2 {[%clk 0:03:01]}  e6 {[%clk 0:02:55]} 6. c3 {[%clk 0:03:01]}  Bd6 {[%clk 0:02:56]} 7. Bg3 {[%clk 0:03:01]}  O-O {[%clk 0:02:55]} 8. Bd3 {[%clk 0:03:02]}  g6 {[%clk 0:02:55]} 9. Ne5 {[%clk 0:02:59]}  Nh5 {[%clk 0:02:42]} 10. Ndf3 {[%clk 0:02:32]}  Ne7 {[%clk 0:02:23]} 11. Bh4 {[%clk 0:02:30]}  f6 {[%clk 0:02:15]} 12. Ng4 {[%clk 0:02:15]}  Nf5 {[%clk 0:02:15]} 13. Bxf5 {[%clk 0:02:09]}  exf5 {[%clk 0:02:13]} 14. Nge5 {[%clk 0:02:09]}  cxd4 {[%clk 0:02:08]} 15. cxd4 {[%clk 0:02:05]}  Qa5+ {[%clk 0:02:07]} 16. Kf1 {[%clk 0:01:58]}  fxe5 {[%clk 0:02:05]} 17. dxe5 {[%clk 0:01:58]}  Bc7 {[%clk 0:02:02]} 18. b4 {[%clk 0:01:52]}  Qa6+ {[%clk 0:01:45]} 19. Kg1 {[%clk 0:01:51]}  Be6 {[%clk 0:01:46]} 20. Rc1 {[%clk 0:01:46]}  Rac8 {[%clk 0:01:43]} 21. h3 {[%clk 0:01:35]}  Rfe8 {[%clk 0:01:34]} 22. a4 {[%clk 0:01:23]}  Bb8 {[%clk 0:01:29]} 23. Rxc8 {[%clk 0:01:21]}  Rxc8 {[%clk 0:01:29]} 24. g4 {[%clk 0:01:15]}  fxg4 {[%clk 0:01:25]} 25. hxg4 {[%clk 0:01:16]}  Bxg4 {[%clk 0:01:23]} 26. Qxd5+ {[%clk 0:01:11]}  Be6 {[%clk 0:01:08]} 27. Qd2 {[%clk 0:01:02]}  Qxa4 {[%clk 0:01:04]} 28. Ng5 {[%clk 0:00:54]}  Qd7 {[%clk 0:01:00]} 29. Qe2 {[%clk 0:00:49]}  Rc1+ {[%clk 0:00:58]} 30. Kg2 {[%clk 0:00:45]}  Rxh1 {[%clk 0:00:58]} 31. Kxh1 {[%clk 0:00:46]}  Bxe5 {[%clk 0:00:56]} 32. f4 {[%clk 0:00:40]}  Bf6 {[%clk 0:00:56]} 33. Kh2 {[%clk 0:00:35]}  Bxg5 {[%clk 0:00:50]} 34. Bxg5 {[%clk 0:00:35]}  Ng7 {[%clk 0:00:51]} 35. Bf6 {[%clk 0:00:32]}  Ne8 {[%clk 0:00:48]} 36. Bd4 {[%clk 0:00:32]}  a6 {[%clk 0:00:46]} 37. Qc2 {[%clk 0:00:30]}  Kf7 {[%clk 0:00:46]} 38. Kg3 {[%clk 0:00:29]}  Qc6 {[%clk 0:00:46]} 39. Qh2 {[%clk 0:00:28]}  h5 {[%clk 0:00:45]} 40. Qh4 {[%clk 0:00:28]}  Qd5 {[%clk 0:00:44]} 41. Kh2 {[%clk 0:00:18]}  Bf5 {[%clk 0:00:42]} 42. Qg5 {[%clk 0:00:17]}  Be4 {[%clk 0:00:36]} 43. Qg1 {[%clk 0:00:12]}  Qa2+ {[%clk 0:00:35]} 44. Kg3 {[%clk 0:00:12]}  Nd6 {[%clk 0:00:35]} 45. Kh4 {[%clk 0:00:12]}  Qg2 {[%clk 0:00:31]} 46. Qxg2 {[%clk 0:00:09]}  Bxg2 {[%clk 0:00:30]} 47. Kg3 {[%clk 0:00:10]}  Be4 {[%clk 0:00:29]} 0-1


[Site "https://www.chess.com"]

[Event "Titled Tuesday Blitz January 03 Late 2023"]
[White "Goroshkov, Maksym"]
[Black "Boros, Denes"]
[WhiteFideId "14142716"]
[BlackFideId "722340"]
[WhiteElo "2287"]
[BlackElo "2406"]
[Result "0-1"]
[Round "05"]
[TimeControl "180+2"]
[Date "2023.01.03"]
[WhiteClock "0:01:01"]
[BlackClock "0:01:01"]

1. e4 {[%clk 0:02:59]}  g6 {[%clk 0:03:00]} 2. d4 {[%clk 0:02:59]}  d5 {[%clk 0:03:00]} 3. exd5 {[%clk 0:02:59]}  Qxd5 {[%clk 0:03:01]} 4. c4 {[%clk 0:02:59]}  Qd8 {[%clk 0:03:01]} 5. Nc3 {[%clk 0:02:59]}  Bg7 {[%clk 0:03:01]} 6. Nf3 {[%clk 0:03:00]}  Nh6 {[%clk 0:03:01]} 7. Bd3 {[%clk 0:02:57]}  Nf5 {[%clk 0:02:59]} 8. Bxf5 {[%clk 0:02:57]}  Bxf5 {[%clk 0:03:00]} 9. O-O {[%clk 0:02:57]}  O-O {[%clk 0:02:56]} 10. Bf4 {[%clk 0:02:55]}  Nc6 {[%clk 0:02:50]} 11. d5 {[%clk 0:02:54]}  Nb4 {[%clk 0:02:51]} 12. Qb3 {[%clk 0:02:30]}  a5 {[%clk 0:02:47]} 13. Ne1 {[%clk 0:02:05]}  b6 {[%clk 0:02:23]} 14. Nb5 {[%clk 0:01:58]}  c6 {[%clk 0:02:16]} 15. dxc6 {[%clk 0:01:56]}  Nxc6 {[%clk 0:02:14]} 16. Bc7 {[%clk 0:01:55]}  Qd2 {[%clk 0:02:02]} 17. Bxb6 {[%clk 0:01:51]}  a4 {[%clk 0:01:56]} 18. Qf3 {[%clk 0:01:42]}  Ne5 {[%clk 0:01:49]} 19. Qd1 {[%clk 0:01:32]}  Nxc4 {[%clk 0:01:45]} 20. Bd4 {[%clk 0:01:27]}  Rfd8 {[%clk 0:01:20]} 21. Nf3 {[%clk 0:01:18]}  Qxd1 {[%clk 0:01:18]} 22. Raxd1 {[%clk 0:01:17]}  Nxb2 {[%clk 0:01:18]} 23. Bxb2 {[%clk 0:01:16]}  Bxb2 {[%clk 0:01:19]} 24. Nfd4 {[%clk 0:01:13]}  Bg4 {[%clk 0:01:13]} 25. f3 {[%clk 0:01:10]}  Bd7 {[%clk 0:01:11]} 26. Rd2 {[%clk 0:01:08]}  Bxb5 {[%clk 0:01:07]} 27. Rxb2 {[%clk 0:01:01]}  Bxf1 {[%clk 0:01:07]} 28. Nc6 {[%clk 0:01:02]}  Rd1 {[%clk 0:01:07]} 29. Kf2 {[%clk 0:01:01]}  Bc4 {[%clk 0:01:01]} 0-1


[Site "https://www.chess.com"]

[Event "Titled Tuesday Blitz January 03 Late 2023"]
[White "Mendez Fortes, Eduardo Jesus"]
[Black "Bryakin, Mikhail"]
[WhiteFideId "3502376"]
[BlackFideId "4165314"]
[WhiteElo "2250"]
[BlackElo "2455"]
[Result "0-1"]
[Round "05"]
[TimeControl "180+2"]
[Date "2023.01.03"]
[WhiteClock "0:00:16"]
[BlackClock "0:00:39"]

1. e4 {[%clk 0:03:00]}  d5 {[%clk 0:02:45]} 2. exd5 {[%clk 0:03:00]}  Qxd5 {[%clk 0:02:41]} 3. Nc3 {[%clk 0:02:59]}  Qe5+ {[%clk 0:02:41]} 4. Be2 {[%clk 0:02:58]}  Bg4 {[%clk 0:02:41]} 5. d4 {[%clk 0:02:57]}  Bxe2 {[%clk 0:02:42]} 6. Ngxe2 {[%clk 0:02:57]}  Qa5 {[%clk 0:02:42]} 7. O-O {[%clk 0:02:55]}  Nf6 {[%clk 0:02:40]} 8. h3 {[%clk 0:02:55]}  Nc6 {[%clk 0:02:40]} 9. Be3 {[%clk 0:02:54]}  O-O-O {[%clk 0:02:40]} 10. Qe1 {[%clk 0:02:52]}  e5 {[%clk 0:02:38]} 11. dxe5 {[%clk 0:02:40]}  Qxe5 {[%clk 0:02:37]} 12. Ng3 {[%clk 0:02:28]}  Bb4 {[%clk 0:02:34]} 13. a3 {[%clk 0:02:19]}  Bxc3 {[%clk 0:02:33]} 14. bxc3 {[%clk 0:02:20]}  Nd5 {[%clk 0:02:25]} 15. Bd4 {[%clk 0:02:07]}  Qxe1 {[%clk 0:02:24]} 16. Rfxe1 {[%clk 0:02:08]}  f6 {[%clk 0:02:16]} 17. Nf5 {[%clk 0:01:57]}  g6 {[%clk 0:02:14]} 18. Ne3 {[%clk 0:01:49]}  Rhf8 {[%clk 0:02:04]} 19. Bc5 {[%clk 0:01:25]}  Rf7 {[%clk 0:02:00]} 20. c4 {[%clk 0:01:18]}  Nxe3 {[%clk 0:01:55]} 21. Bxe3 {[%clk 0:01:19]}  Ne5 {[%clk 0:01:50]} 22. c5 {[%clk 0:01:19]}  Nc6 {[%clk 0:01:46]} 23. Rad1 {[%clk 0:01:06]}  Rxd1 {[%clk 0:01:45]} 24. Rxd1 {[%clk 0:01:07]}  Rd7 {[%clk 0:01:46]} 25. Re1 {[%clk 0:01:06]}  Re7 {[%clk 0:01:46]} 26. Rd1 {[%clk 0:01:05]}  Re4 {[%clk 0:01:42]} 27. Rd3 {[%clk 0:01:02]}  Ne5 {[%clk 0:01:41]} 28. Rb3 {[%clk 0:00:58]}  Nc4 {[%clk 0:01:37]} 29. Rb4 {[%clk 0:00:48]}  f5 {[%clk 0:01:37]} 30. Bg5 {[%clk 0:00:45]}  Nxa3 {[%clk 0:01:36]} 31. Rb3 {[%clk 0:00:44]}  Nxc2 {[%clk 0:01:36]} 32. Rd3 {[%clk 0:00:43]}  Rd4 {[%clk 0:01:29]} 33. Rc3 {[%clk 0:00:43]}  Rd1+ {[%clk 0:01:29]} 34. Kh2 {[%clk 0:00:42]}  Nd4 {[%clk 0:01:26]} 35. Re3 {[%clk 0:00:42]}  b5 {[%clk 0:01:20]} 36. cxb6 {[%clk 0:00:33]}  axb6 {[%clk 0:01:21]} 37. Re7 {[%clk 0:00:32]}  Nc6 {[%clk 0:01:21]} 38. Rxh7 {[%clk 0:00:32]}  b5 {[%clk 0:01:22]} 39. Bf4 {[%clk 0:00:32]}  Rd7 {[%clk 0:01:21]} 40. Rh6 {[%clk 0:00:32]}  Ne7 {[%clk 0:01:19]} 41. Bg5 {[%clk 0:00:28]}  b4 {[%clk 0:01:18]} 42. Rh8+ {[%clk 0:00:28]}  Kb7 {[%clk 0:01:19]} 43. Rh7 {[%clk 0:00:28]}  b3 {[%clk 0:01:17]} 44. Bf6 {[%clk 0:00:26]}  c5 {[%clk 0:01:15]} 45. Rg7 {[%clk 0:00:23]}  c4 {[%clk 0:01:13]} 46. h4 {[%clk 0:00:22]}  Kc8 {[%clk 0:01:08]} 47. Rf7 {[%clk 0:00:20]}  Nd5 {[%clk 0:01:08]} 48. Rf8+ {[%clk 0:00:21]}  Kb7 {[%clk 0:01:08]} 49. Be5 {[%clk 0:00:21]}  Nc7 {[%clk 0:01:07]} 50. Rg8 {[%clk 0:00:20]}  Na6 {[%clk 0:01:04]} 51. Rxg6 {[%clk 0:00:20]}  Rd5 {[%clk 0:01:04]} 52. Bc3 {[%clk 0:00:19]}  Rd3 {[%clk 0:01:05]} 53. Ba5 {[%clk 0:00:18]}  Rd5 {[%clk 0:01:02]} 54. Bc3 {[%clk 0:00:17]}  f4 {[%clk 0:01:01]} 55. Kh3 {[%clk 0:00:17]}  Nc5 {[%clk 0:01:01]} 56. Rg5 {[%clk 0:00:16]}  Rd3+ {[%clk 0:00:50]} 57. f3 {[%clk 0:00:15]}  Kc6 {[%clk 0:00:41]} 58. Bf6 {[%clk 0:00:13]}  c3 {[%clk 0:00:39]} 59. Bxc3 {[%clk 0:00:14]}  Rxc3 {[%clk 0:00:39]} 60. h5 {[%clk 0:00:15]}  b2 {[%clk 0:00:39]} 61. h6 {[%clk 0:00:16]}  b1=Q {[%clk 0:00:39]} 62. Kh2 {[%clk 0:00:16]}  Rc1 {[%clk 0:00:39]} 0-1


[Site "https://www.chess.com"]

[Event "Titled Tuesday Blitz January 03 Late 2023"]
[White "Rangel, Daniel"]
[Black "Borges Feria, Yasel"]
[WhiteFideId "2124475"]
[BlackFideId "3504921"]
[WhiteElo "2207"]
[BlackElo "2439"]
[Result "1/2-1/2"]
[Round "05"]
[TimeControl "180+2"]
[Date "2023.01.03"]
[WhiteClock "0:00:09"]
[BlackClock "0:00:07"]

1. c4 {[%clk 0:02:59]}  e6 {[%clk 0:02:58]} 2. g3 {[%clk 0:02:59]}  d5 {[%clk 0:02:57]} 3. Bg2 {[%clk 0:03:00]}  dxc4 {[%clk 0:02:57]} 4. Qa4+ {[%clk 0:02:58]}  Nd7 {[%clk 0:02:54]} 5. Qxc4 {[%clk 0:02:58]}  a6 {[%clk 0:02:55]} 6. Qc2 {[%clk 0:02:53]}  Ngf6 {[%clk 0:02:51]} 7. Nf3 {[%clk 0:02:52]}  Be7 {[%clk 0:02:49]} 8. O-O {[%clk 0:02:50]}  O-O {[%clk 0:02:49]} 9. b3 {[%clk 0:02:48]}  Rb8 {[%clk 0:02:23]} 10. Bb2 {[%clk 0:02:44]}  c5 {[%clk 0:02:20]} 11. d4 {[%clk 0:02:35]}  b5 {[%clk 0:01:57]} 12. dxc5 {[%clk 0:02:29]}  Bxc5 {[%clk 0:01:56]} 13. Nc3 {[%clk 0:02:13]}  Bb7 {[%clk 0:01:53]} 14. e3 {[%clk 0:02:10]}  Rc8 {[%clk 0:01:51]} 15. Qe2 {[%clk 0:02:04]}  Qe7 {[%clk 0:01:50]} 16. a3 {[%clk 0:01:56]}  Rfd8 {[%clk 0:01:47]} 17. b4 {[%clk 0:01:55]}  Ba7 {[%clk 0:01:43]} 18. Rfd1 {[%clk 0:01:54]}  Nb6 {[%clk 0:01:41]} 19. Rxd8+ {[%clk 0:01:47]}  Rxd8 {[%clk 0:01:42]} 20. Rd1 {[%clk 0:01:47]}  Nc4 {[%clk 0:01:42]} 21. Rxd8+ {[%clk 0:01:42]}  Qxd8 {[%clk 0:01:43]} 22. Bc1 {[%clk 0:01:39]}  h6 {[%clk 0:01:33]} 23. Nd2 {[%clk 0:01:32]}  Bxg2 {[%clk 0:01:33]} 24. Kxg2 {[%clk 0:01:31]}  Ne5 {[%clk 0:01:29]} 25. Bb2 {[%clk 0:01:07]}  Ng6 {[%clk 0:00:59]} 26. Kg1 {[%clk 0:01:02]}  Qc7 {[%clk 0:00:55]} 27. Nde4 {[%clk 0:00:52]}  Nd7 {[%clk 0:00:49]} 28. Qd3 {[%clk 0:00:47]}  Qc6 {[%clk 0:00:47]} 29. Qd6 {[%clk 0:00:43]}  Nge5 {[%clk 0:00:45]} 30. Qxc6 {[%clk 0:00:42]}  Nxc6 {[%clk 0:00:45]} 31. Kf1 {[%clk 0:00:38]}  f5 {[%clk 0:00:44]} 32. Nd2 {[%clk 0:00:34]}  Kf7 {[%clk 0:00:43]} 33. Ke2 {[%clk 0:00:34]}  g5 {[%clk 0:00:41]} 34. Na2 {[%clk 0:00:31]}  g4 {[%clk 0:00:38]} 35. Nc1 {[%clk 0:00:31]}  h5 {[%clk 0:00:35]} 36. Nd3 {[%clk 0:00:31]}  e5 {[%clk 0:00:29]} 37. Nb3 {[%clk 0:00:27]}  Ke6 {[%clk 0:00:28]} 38. Nd2 {[%clk 0:00:22]}  Kd5 {[%clk 0:00:29]} 39. Nb1 {[%clk 0:00:19]}  Bb8 {[%clk 0:00:27]} 40. Kd2 {[%clk 0:00:16]}  e4 {[%clk 0:00:26]} 41. Nc1 {[%clk 0:00:15]}  Be5 {[%clk 0:00:24]} 42. Nc3+ {[%clk 0:00:14]}  Ke6 {[%clk 0:00:21]} 43. Kc2 {[%clk 0:00:14]}  Nb6 {[%clk 0:00:17]} 44. N3e2 {[%clk 0:00:13]}  Bxb2 {[%clk 0:00:16]} 45. Kxb2 {[%clk 0:00:14]}  Nd5 {[%clk 0:00:17]} 46. Na2 {[%clk 0:00:13]}  Ne5 {[%clk 0:00:16]} 47. Nac3 {[%clk 0:00:12]}  Nd3+ {[%clk 0:00:17]} 48. Kc2 {[%clk 0:00:13]}  Nxf2 {[%clk 0:00:16]} 49. Nxd5 {[%clk 0:00:12]}  Kxd5 {[%clk 0:00:17]} 50. Nf4+ {[%clk 0:00:12]}  Ke5 {[%clk 0:00:16]} 51. Nxh5 {[%clk 0:00:13]}  Nd3 {[%clk 0:00:16]} 52. Nf4 {[%clk 0:00:12]}  Nxf4 {[%clk 0:00:14]} 53. gxf4+ {[%clk 0:00:13]}  Kd5 {[%clk 0:00:14]} 54. Kc3 {[%clk 0:00:13]}  Kc6 {[%clk 0:00:13]} 55. Kd4 {[%clk 0:00:13]}  Kd6 {[%clk 0:00:13]} 56. Kc3 {[%clk 0:00:14]}  Kd5 {[%clk 0:00:14]} 57. Kb3 {[%clk 0:00:14]}  Ke6 {[%clk 0:00:14]} 58. Kc3 {[%clk 0:00:15]}  Kf6 {[%clk 0:00:09]} 59. Kd4 {[%clk 0:00:15]}  Kg6 {[%clk 0:00:10]} 60. Ke5 {[%clk 0:00:16]}  Kh5 {[%clk 0:00:11]} 61. Kxf5 {[%clk 0:00:16]}  Kh4 {[%clk 0:00:11]} 62. Kxe4 {[%clk 0:00:13]}  Kh3 {[%clk 0:00:09]} 63. f5 {[%clk 0:00:13]}  Kxh2 {[%clk 0:00:09]} 64. f6 {[%clk 0:00:14]}  g3 {[%clk 0:00:10]} 65. f7 {[%clk 0:00:14]}  g2 {[%clk 0:00:11]} 66. f8=Q {[%clk 0:00:14]}  g1=Q {[%clk 0:00:12]} 67. Qf3 {[%clk 0:00:14]}  Qb1+ {[%clk 0:00:11]} 68. Kf4 {[%clk 0:00:13]}  Qb3 {[%clk 0:00:09]} 69. Qg3+ {[%clk 0:00:13]}  Kh1 {[%clk 0:00:09]} 70. e4 {[%clk 0:00:13]}  Qf7+ {[%clk 0:00:09]} 71. Ke3 {[%clk 0:00:12]}  Qb3+ {[%clk 0:00:09]} 72. Kf4 {[%clk 0:00:12]}  Qf7+ {[%clk 0:00:08]} 73. Kg4 {[%clk 0:00:12]}  Qg7+ {[%clk 0:00:07]} 74. Kf3 {[%clk 0:00:12]}  Qc3+ {[%clk 0:00:07]} 75. Kg4 {[%clk 0:00:12]}  Qg7+ {[%clk 0:00:08]} 76. Kf4 {[%clk 0:00:13]}  Qf6+ {[%clk 0:00:07]} 77. Kg4 {[%clk 0:00:09]}  Qg7+ {[%clk 0:00:07]} 1/2-1/2


[Site "https://www.chess.com"]

[Event "Titled Tuesday Blitz January 03 Late 2023"]
[White "Keller, Peter"]
[Black "Cristobal, Manuel"]
[WhiteFideId "1272105"]
[BlackFideId "112879"]
[WhiteElo "2358"]
[BlackElo "2257"]
[Result "0-1"]
[Round "05"]
[TimeControl "180+2"]
[Date "2023.01.03"]
[WhiteClock "0:00:40"]
[BlackClock "0:01:57"]

1. d4 {[%clk 0:02:53]}  Nf6 {[%clk 0:02:59]} 2. Bf4 {[%clk 0:02:51]}  g6 {[%clk 0:02:58]} 3. e3 {[%clk 0:02:39]}  Bg7 {[%clk 0:02:58]} 4. Nf3 {[%clk 0:02:37]}  d6 {[%clk 0:02:58]} 5. h3 {[%clk 0:02:38]}  O-O {[%clk 0:02:59]} 6. c3 {[%clk 0:02:37]}  Nc6 {[%clk 0:02:59]} 7. Be2 {[%clk 0:02:37]}  Nd7 {[%clk 0:02:58]} 8. Bh2 {[%clk 0:02:35]}  e5 {[%clk 0:02:58]} 9. dxe5 {[%clk 0:02:35]}  Ndxe5 {[%clk 0:02:58]} 10. Nbd2 {[%clk 0:02:34]}  f5 {[%clk 0:02:57]} 11. Nxe5 {[%clk 0:02:21]}  Nxe5 {[%clk 0:02:57]} 12. Nf3 {[%clk 0:02:21]}  Nf7 {[%clk 0:02:51]} 13. O-O {[%clk 0:02:08]}  Qe7 {[%clk 0:02:48]} 14. a4 {[%clk 0:01:59]}  a5 {[%clk 0:02:41]} 15. Nd4 {[%clk 0:01:57]}  Bd7 {[%clk 0:02:33]} 16. Nb5 {[%clk 0:01:54]}  Bc6 {[%clk 0:02:32]} 17. Nd4 {[%clk 0:01:52]}  Bd5 {[%clk 0:02:28]} 18. Bf3 {[%clk 0:01:52]}  Bc4 {[%clk 0:02:27]} 19. Be2 {[%clk 0:01:50]}  Bxe2 {[%clk 0:02:26]} 20. Qxe2 {[%clk 0:01:51]}  Ne5 {[%clk 0:02:25]} 21. Nf3 {[%clk 0:01:44]}  Nd7 {[%clk 0:02:24]} 22. Qc4+ {[%clk 0:01:40]}  Qf7 {[%clk 0:02:22]} 23. Qxc7 {[%clk 0:01:38]}  Ne5 {[%clk 0:02:23]} 24. Qxf7+ {[%clk 0:01:38]}  Nxf7 {[%clk 0:02:22]} 25. Rfd1 {[%clk 0:01:37]}  Ra6 {[%clk 0:02:21]} 26. Rd5 {[%clk 0:01:36]}  Rb6 {[%clk 0:02:19]} 27. Rb5 {[%clk 0:01:33]}  Rxb5 {[%clk 0:02:18]} 28. axb5 {[%clk 0:01:34]}  b6 {[%clk 0:02:19]} 29. Rd1 {[%clk 0:01:28]}  Rc8 {[%clk 0:02:12]} 30. Rd5 {[%clk 0:01:11]}  Kf8 {[%clk 0:02:10]} 31. Nd4 {[%clk 0:01:00]}  Bxd4 {[%clk 0:02:09]} 32. Rxd4 {[%clk 0:00:57]}  Ke7 {[%clk 0:02:09]} 33. c4 {[%clk 0:00:51]}  a4 {[%clk 0:02:07]} 34. Kf1 {[%clk 0:00:50]}  Ne5 {[%clk 0:02:02]} 35. Bxe5 {[%clk 0:00:45]}  dxe5 {[%clk 0:02:02]} 36. Rd5 {[%clk 0:00:41]}  Ke6 {[%clk 0:02:00]} 37. f4 {[%clk 0:00:41]}  exf4 {[%clk 0:01:59]} 38. exf4 {[%clk 0:00:42]}  Rxc4 {[%clk 0:01:59]} 39. g3 {[%clk 0:00:40]}  Kxd5 {[%clk 0:01:57]} 0-1


[Site "https://www.chess.com"]